fUST/lending_fUST_20250408
["ID","MTS","AMOUNT","RATE_DAILY","PERIOD"]
[357477897,1744079471145,-523.03,0.00025205,2]
[357477898,1744079471154,-795.94,0.00025205,2]
[357477899,1744079471164,-590.76,0.00025205,2]
[357477900,1744079471177,-1531.45,0.00025205,2]
[357477901,1744079471188,-1878.37,0.00025205,2]
[357477902,1744079471198,-1180.34,0.00025205,2]
[357477903,1744079471208,-2000.22,0.00025205,2]
[357477904,1744079471217,-1118.42,0.00025205,2]
[357477905,1744079471228,-500.0,0.00025205,2]
[357477906,1744079471239,-500.0,0.00025205,2]
[357477907,1744079471249,-1868.62,0.00025205,2]
[357477908,1744079471259,-500.0,0.00025205,2]
[357477909,1744079471269,-537.3066955,0.00025205,2]
[357477910,1744079471279,-500.0,0.00025205,2]
[357477911,1744079471290,-1602.29,0.00025205,2]
[357477912,1744079471300,-500.0,0.00025205,2]
[357477913,1744079471309,-1915.21,0.00025205,2]
[357477914,1744079471318,-500.0,0.00025205,2]
[357477915,1744079471328,-602.81,0.00025205,2]
[357477916,1744079471338,-500.0,0.00025205,2]
[357477917,1744079471348,-2426.96,0.00025205,2]
[357477918,1744079471358,-500.0,0.00025205,2]
[357477919,1744079471368,-500.0,0.00025205,2]
[357477920,1744079471378,-1165.83,0.00025205,2]
[357477921,1744079471388,-2935.5,0.00025205,2]
[357477922,1744079471398,-955.52,0.00025205,2]
[357477923,1744079471410,-500.0,0.00025205,2]
[357477924,1744079471422,-1109.48,0.00025205,2]
[357477925,1744079471432,-500.0,0.00025205,2]
[357477926,1744079471442,-500.0,0.00025205,2]
[357477927,1744079471452,-500.0,0.00025205,2]
[357477928,1744079471462,-1240.57,0.00025205,2]
[357477929,1744079471472,-500.0,0.00025205,2]
[357477930,1744079471482,-1640.16,0.00025205,2]
[357477931,1744079471493,-503.7,0.00025205,2]
[357477932,1744079471502,-1130.38,0.00025205,2]
[357477933,1744079471512,-151.0,0.00025469,7]
[357477934,1744079471522,-900.0,0.00025469,3]
[357477935,1744079471532,-160.64066927,0.00025478,2]
[357477936,1744079471542,-500.0,0.00025479,2]
[357477937,1744079471552,-500.0,0.00025479,2]
[357477938,1744079471562,-500.0,0.00025479,2]
[357477939,1744079471572,-500.0,0.00025479,2]
[357477940,1744079471582,-500.11,0.00025479,2]
[357477941,1744079471591,-500.0,0.00025479,2]
[357477942,1744079471601,-500.0,0.00025479,2]
[357477943,1744079471611,-500.0,0.00025479,2]
[357477944,1744079471620,-500.0,0.00025479,2]
[357477945,1744079471631,-500.0,0.00025479,2]
[357477946,1744079471645,-500.0,0.00025479,2]
[357477947,1744079471655,-617.55,0.00025479,2]
[357477948,1744079471666,-352.16428442,0.00025479,2]
[357477949,1744079471677,-500.0,0.00025479,2]
[357477950,1744079471688,-655.89,0.00025479,2]
[357477951,1744079471698,-500.0,0.00025479,2]
[357477952,1744079471709,-694.6,0.00025479,2]
[357477953,1744079471721,-500.0,0.00025479,2]
[357477954,1744079471731,-777.63,0.00025479,2]
[357477955,1744079471741,-536.91,0.00025479,2]
[357477956,1744079471751,-527.31,0.00025479,2]
[357477957,1744079471761,-647.06,0.00025479,2]
[357477958,1744079471771,-500.0,0.00025479,2]
[357477959,1744079471780,-500.0,0.00025479,2]
[357477960,1744079471790,-1500.08,0.00025479,2]
[357477961,1744079471800,-500.0,0.00025479,2]
[357477962,1744079471810,-601.69,0.00025479,2]
[357477963,1744079471820,-500.0,0.00025479,2]
[357477964,1744079471830,-500.0,0.00025479,2]
[357477965,1744079471840,-1208.47,0.00025479,2]
[357477966,1744079471850,-500.0,0.00025479,2]
[357477967,1744079471859,-500.0,0.00025479,2]
[357477968,1744079471869,-1268.13,0.00025479,2]
[357477969,1744079471879,-1140.19,0.00025479,2]
[357477970,1744079471889,-727.74,0.00025479,2]
[357477971,1744079471898,-554.86,0.00025479,2]
[357477972,1744079471908,-831.74,0.00025479,2]
[357477973,1744079471918,-500.0,0.00025479,2]
[357477974,1744079471928,-500.0,0.00025479,2]
[357477975,1744079471938,-1393.1,0.00025479,2]
[357477976,1744079471948,-951.68,0.00025479,2]
[357477977,1744079471958,-1353.37,0.00025479,2]
[357477978,1744079471968,-500.0,0.00025479,2]
[357477979,1744079471978,-1182.11,0.00025479,2]
[357477980,1744079471987,-500.0,0.00025479,2]
[357477981,1744079471997,-500.0,0.00025479,2]
[357477982,1744079472007,-526.21,0.00025479,2]
[357477983,1744079472016,-500.0,0.00025479,2]
[357477984,1744079472026,-500.32183657,0.00025479,2]
[357477985,1744079472036,-2114.72,0.00025479,2]
[357477986,1744079472046,-174.51510736,0.00025479,2]
[357477987,1744079472056,-572.22,0.00025479,2]
[357477988,1744079472066,-8763.46,0.00025479,2]
[357477989,1744079472076,-292.88364408,0.00025479,2]
[357477990,1744079472086,-1114.99,0.00025479,2]
[357477991,1744079472096,-500.0,0.00025479,2]
[357477992,1744079472106,-500.0,0.00025479,2]
[357477993,1744079472115,-500.0,0.00025479,2]
[357477994,1744079472125,-836.02,0.00025479,2]
[357477995,1744079472135,-1780.71,0.00025479,2]
[357477996,1744079472144,-500.0,0.00025479,2]
[357477997,1744079472154,-500.0,0.00025479,2]
[357477998,1744079472163,-595.24,0.00025479,2]
[357477999,1744079472175,-524.96,0.00025479,2]
[357478000,1744079472185,-500.0,0.00025479,2]
[357478001,1744079472194,-771.06,0.00025479,2]
[357478002,1744079472204,-2262.69,0.00025479,2]
[357478003,1744079472213,-500.0,0.00025479,2]
[357478004,1744079472223,-2880.26,0.00025479,2]
[357478005,1744079472232,-500.0,0.00025479,2]
[357478006,1744079472242,-1134.35,0.00025479,2]
[357478007,1744079472251,-1798.88,0.00025479,2]
[357478008,1744079472261,-589.5,0.00025479,2]
[357478009,1744079472271,-1340.54,0.00025479,2]
[357478010,1744079472281,-500.0,0.00025479,2]
[357478011,1744079472290,-500.0,0.00025479,2]
[357478012,1744079472300,-500.0,0.00025479,2]
[357478013,1744079472310,-2337.51,0.00025479,2]
[357478014,1744079472320,-542.01,0.00025479,2]
[357478015,1744079472329,-2076.71,0.00025479,2]
[357478016,1744079472340,-730.76,0.00025479,2]
[357478017,1744079472349,-649.61655276,0.00025479,2]
[357478018,1744079472358,-1162.69,0.00025479,2]
[357478019,1744079472368,-1291.27,0.00025479,2]
[357478020,1744079472377,-546.37,0.00025479,2]
[357478021,1744079472388,-1701.69,0.00025479,2]
[357478022,1744079472398,-1276.21,0.00025479,2]
[357478023,1744079472407,-209.40938492,0.00025479,2]
[357478024,1744079472417,-500.0,0.00025479,2]
[357478025,1744079472427,-561.08,0.00025479,2]
[357478026,1744079472437,-500.0,0.00025479,2]
[357478027,1744079472448,-500.0,0.00025479,2]
[357478028,1744079472458,-890.46,0.00025479,2]
[357478029,1744079472468,-247.73462738,0.00025479,2]
[357478030,1744079472478,-5381.3,0.00025479,2]
[357478031,1744079472488,-1513.16,0.00025479,2]
[357478032,1744079472498,-500.0,0.00025479,2]
[357478033,1744079472508,-720.44,0.00025479,2]
[357478034,1744079472518,-631.54552306,0.00025479,2]
[357478035,1744079472528,-500.0,0.00025479,2]
[357478036,1744079472537,-500.0,0.00025479,2]
[357478037,1744079472547,-1073.11,0.00025479,2]
[357478038,1744079472556,-500.0,0.00025479,2]
[357478039,1744079472566,-568.94,0.00025479,2]
[357478040,1744079472576,-523.03,0.00025479,2]
[357478041,1744079472586,-795.94,0.00025479,2]
[357478042,1744079472595,-590.76,0.00025479,2]
[357478043,1744079472604,-1531.45,0.00025479,2]
[357478044,1744079472614,-1878.37,0.00025479,2]
[357478045,1744079472624,-1180.34,0.00025479,2]
[357478046,1744079472635,-2000.22,0.00025479,2]
[357478047,1744079472647,-1118.42,0.00025479,2]
[357478048,1744079472658,-500.0,0.00025479,2]
[357478049,1744079472668,-500.0,0.00025479,2]
[357478050,1744079472680,-1868.62,0.00025479,2]
[357478051,1744079472815,-500.0,0.00025479,2]
[357478052,1744079472826,-500.0,0.00025479,2]
[357478053,1744079472836,-1602.29,0.00025479,2]
[357478054,1744079472847,-500.0,0.00025479,2]
[357478055,1744079472856,-1915.21,0.00025479,2]
[357478056,1744079472867,-500.0,0.00025479,2]
[357478057,1744079472877,-602.81,0.00025479,2]
[357478058,1744079472887,-500.0,0.00025479,2]
[357478059,1744079472897,-2426.96,0.00025479,2]
[357478060,1744079472906,-500.0,0.00025479,2]
[357478061,1744079472917,-500.0,0.00025479,2]
[357478062,1744079472928,-1165.83,0.00025479,2]
[357478063,1744079472937,-2935.5,0.00025479,2]
[357478064,1744079472947,-955.52,0.00025479,2]
[357478065,1744079472958,-500.0,0.00025479,2]
[357478066,1744079472967,-1109.48,0.00025479,2]
[357478067,1744079472977,-500.0,0.00025479,2]
[357478068,1744079472987,-500.0,0.00025479,2]
[357478069,1744079472998,-1240.57,0.00025479,2]
[357478070,1744079473007,-500.0,0.00025479,2]
[357478071,1744079473017,-500.0,0.00025479,2]
[357478072,1744079473027,-1640.16,0.00025479,2]
[357478073,1744079473038,-503.7,0.00025479,2]
[357478074,1744079473048,-1130.38,0.00025479,2]
[357478075,1744079473058,-501.38183964,0.00025586,2]
[357478076,1744079473068,-502.10400037,0.00025586,2]
[357478077,1744079473078,-223.0315306,0.00025711,2]
[357478078,1744079473088,-500.0,0.00025753,2]
[357478079,1744079473098,-500.0,0.00025753,2]
[357478080,1744079473108,-500.0,0.00025753,2]
[357478081,1744079473118,-500.0,0.00025753,2]
[357478082,1744079473127,-500.11,0.00025753,2]
[357478083,1744079473137,-500.0,0.00025753,2]
[357478084,1744079473148,-500.0,0.00025753,2]
[357478085,1744079473158,-500.0,0.00025753,2]
[357478086,1744079473170,-500.0,0.00025753,2]
[357478087,1744079473181,-500.0,0.00025753,2]
[357478088,1744079473192,-500.0,0.00025753,2]
[357478089,1744079473202,-617.55,0.00025753,2]
[357478090,1744079473213,-500.0,0.00025753,2]
[357478091,1744079473223,-655.89,0.00025753,2]
[357478092,1744079473234,-500.0,0.00025753,2]
[357478093,1744079473245,-694.6,0.00025753,2]
[357478094,1744079473255,-500.0,0.00025753,2]
[357478095,1744079473265,-777.63,0.00025753,2]
[357478096,1744079473275,-536.91,0.00025753,2]
[357478097,1744079473286,-527.31,0.00025753,2]
[357478098,1744079473296,-647.06,0.00025753,2]
[357478099,1744079473306,-500.0,0.00025753,2]
[357478100,1744079473316,-500.0,0.00025753,2]
[357478101,1744079473327,-1500.08,0.00025753,2]
[357478102,1744079473336,-500.0,0.00025753,2]
[357478103,1744079473346,-601.69,0.00025753,2]
[357478104,1744079473356,-500.0,0.00025753,2]
[357478105,1744079473365,-500.0,0.00025753,2]
[357478106,1744079473375,-1208.47,0.00025753,2]
[357478107,1744079473385,-500.0,0.00025753,2]
[357478108,1744079473394,-293.24522538,0.00025753,2]
[357478109,1744079473404,-1268.13,0.00025753,2]
[357478110,1744079473413,-1140.19,0.00025753,2]
[357478111,1744079473426,-727.74,0.00025753,2]
[357478112,1744079473436,-554.86,0.00025753,2]
[357478113,1744079473446,-831.74,0.00025753,2]
[357478114,1744079473456,-500.0,0.00025753,2]
[357478115,1744079473467,-500.0,0.00025753,2]
[357478116,1744079473476,-1393.1,0.00025753,2]
[357478117,1744079473486,-951.68,0.00025753,2]
[357478118,1744079473496,-1353.37,0.00025753,2]
[357478119,1744079473506,-500.0,0.00025753,2]
[357478120,1744079473516,-1182.11,0.00025753,2]
[357478121,1744079473526,-274.20639669,0.00025753,2]
[357478122,1744079473535,-500.0,0.00025753,2]
[357478123,1744079473545,-526.21,0.00025753,2]
[357478124,1744079473554,-500.0,0.00025753,2]
[357478125,1744079473565,-2114.72,0.00025753,2]
[357478126,1744079473575,-572.22,0.00025753,2]
[357478127,1744079473584,-8763.46,0.00025753,2]
[357478128,1744079473594,-1114.99,0.00025753,2]
[357478129,1744079473604,-500.0,0.00025753,2]
[357478130,1744079473618,-500.0,0.00025753,2]
[357478131,1744079473634,-500.0,0.00025753,2]
[357478132,1744079473648,-836.02,0.00025753,2]
[357478133,1744079473658,-1780.71,0.00025753,2]
[357478134,1744079473668,-500.0,0.00025753,2]
[357478135,1744079473678,-595.24,0.00025753,2]
[357478136,1744079473688,-524.96,0.00025753,2]
[357478137,1744079473714,-500.0,0.00025753,2]
[357478138,1744079473731,-771.06,0.00025753,2]
[357478139,1744079473753,-2262.69,0.00025753,2]
[357478140,1744079473775,-500.0,0.00025753,2]
[357478141,1744079473797,-2880.26,0.00025753,2]
[357478142,1744079473815,-500.0,0.00025753,2]
[357478143,1744079473834,-1134.35,0.00025753,2]
[357478144,1744079473855,-1798.88,0.00025753,2]
[357478145,1744079473870,-589.5,0.00025753,2]
[357478146,1744079473889,-1340.54,0.00025753,2]
[357478147,1744079473911,-500.0,0.00025753,2]
[357478148,1744079473938,-500.0,0.00025753,2]
[357478149,1744079473962,-500.0,0.00025753,2]
[357478150,1744079473977,-2337.51,0.00025753,2]
[357478151,1744079473999,-542.01,0.00025753,2]
[357478152,1744079474018,-2076.71,0.00025753,2]
[357478153,1744079474036,-730.76,0.00025753,2]
[357478154,1744079474053,-1162.69,0.00025753,2]
[357478155,1744079474069,-1291.27,0.00025753,2]
[357478156,1744079474084,-546.37,0.00025753,2]
[357478157,1744079474101,-1701.69,0.00025753,2]
[357478158,1744079474116,-1276.21,0.00025753,2]
[357478159,1744079474132,-500.0,0.00025753,2]
[357478160,1744079474148,-561.08,0.00025753,2]
[357478161,1744079474164,-500.0,0.00025753,2]
[357478162,1744079474183,-500.0,0.00025753,2]
[357478163,1744079474199,-890.46,0.00025753,2]
[357478164,1744079474216,-5381.3,0.00025753,2]
[357478165,1744079474233,-1513.16,0.00025753,2]
[357478166,1744079474249,-500.0,0.00025753,2]
[357478167,1744079474265,-720.44,0.00025753,2]
[357478168,1744079474282,-500.0,0.00025753,2]
[357478169,1744079474298,-291.22764961,0.00025753,2]
[357478170,1744079474313,-1073.11,0.00025753,2]
[357478171,1744079474329,-500.0,0.00025753,2]
[357478172,1744079474348,-568.94,0.00025753,2]
[357478173,1744079474364,-523.03,0.00025753,2]
[357478174,1744079474379,-795.94,0.00025753,2]
[357478175,1744079474394,-590.76,0.00025753,2]
[357478176,1744079474409,-1531.45,0.00025753,2]
[357478177,1744079474427,-1878.37,0.00025753,2]
[357478178,1744079474442,-1180.34,0.00025753,2]
[357478179,1744079474457,-2000.22,0.00025753,2]
[357478180,1744079474473,-1118.42,0.00025753,2]
[357478181,1744079474489,-500.0,0.00025753,2]
[357478182,1744079474504,-500.0,0.00025753,2]
[357478183,1744079474519,-1868.62,0.00025753,2]
[357478184,1744079474535,-500.0,0.00025753,2]
[357478185,1744079474551,-500.0,0.00025753,2]
[357478186,1744079474566,-1602.29,0.00025753,2]
[357478187,1744079474582,-500.0,0.00025753,2]
[357478188,1744079474597,-1915.21,0.00025753,2]
[357478189,1744079474613,-500.0,0.00025753,2]
[357478190,1744079474630,-602.81,0.00025753,2]
[357478191,1744079474648,-500.0,0.00025753,2]
[357478192,1744079474665,-2426.96,0.00025753,2]
[357478193,1744079474682,-500.0,0.00025753,2]
[357478194,1744079474698,-151.0,0.00025753,7]
[357478195,1744079474713,-500.0,0.00025753,2]
[357478196,1744079474729,-1165.83,0.00025753,2]
[357478197,1744079474744,-2935.5,0.00025753,2]
[357478198,1744079474760,-955.52,0.00025753,2]
[357478199,1744079474776,-455.96637912,0.00025753,2]
[357478200,1744079474792,-521.80983,0.00025753,7]
[357478201,1744079474809,-521.80983,0.00025753,7]
[357478202,1744079474825,-1109.48,0.00025753,2]
[357478203,1744079474841,-500.0,0.00025753,2]
[357478204,1744079474856,-500.0,0.00025753,2]
[357478205,1744079474872,-1240.57,0.00025753,2]
[357478206,1744079474888,-500.0,0.00025753,2]
[357478207,1744079474904,-500.0,0.00025753,2]
[357478208,1744079474921,-1640.16,0.00025753,2]
[357478209,1744079474938,-503.7,0.00025753,2]
[357478210,1744079474954,-1130.38,0.00025753,2]
[357478211,1744079474970,-500.0,0.00025893,2]
[357478212,1744079474987,-500.0,0.00025906,2]
[357478213,1744079475003,-502.5418433,0.00025906,2]
[357478214,1744079475019,-500.87750444,0.00025906,2]
[357478215,1744079475034,-500.0,0.00025906,2]
[357478216,1744079475044,-501.42934886,0.00025999,2]
[357478217,1744079475054,-1002.0,0.00026,2]
[357478218,1744079475064,-49367.79280152,0.00026,30]
[357478219,1744079475075,-500.0,0.00026027,2]
[357478220,1744079475288,-500.0,0.00026027,2]
[357478221,1744079475317,-171.320962,0.00026027,2]
[357478222,1744079475333,-500.0,0.00026027,2]
[357478223,1744079475344,-500.11,0.00026027,2]
[357478224,1744079475354,-500.0,0.00026027,2]
[357478225,1744079475363,-643.77348639,0.00026027,2]
[357478226,1744079475373,-500.0,0.00026027,2]
[357478227,1744079475383,-500.0,0.00026027,2]
[357478228,1744079475393,-500.0,0.00026027,2]
[357478229,1744079475403,-500.0,0.00026027,2]
[357478230,1744079475412,-617.55,0.00026027,2]
[357478231,1744079475423,-214.59994313,0.00026027,2]
[357478232,1744079475432,-151.0,0.00026027,7]
[357478233,1744079475442,-655.89,0.00026027,2]
[357478234,1744079475451,-500.0,0.00026027,2]
[357478235,1744079475461,-694.6,0.00026027,2]
[357478236,1744079475470,-500.0,0.00026027,2]
[357478237,1744079475480,-165.514806,0.00026027,7]
[357478238,1744079475490,-777.63,0.00026027,2]
[357478239,1744079475500,-536.91,0.00026027,2]
[357478240,1744079475510,-527.31,0.00026027,2]
[357478241,1744079475520,-151.0,0.00026027,7]
[357478242,1744079475529,-647.06,0.00026027,2]
[357478243,1744079475539,-151.0,0.00026027,7]
[357478244,1744079475548,-500.0,0.00026027,2]
[357478245,1744079475558,-190.802693,0.00026027,2]
[357478246,1744079475567,-190.802693,0.00026027,2]
[357478247,1744079475577,-500.0,0.00026027,2]
[357478248,1744079475587,-1500.08,0.00026027,2]
[357478249,1744079475597,-527.15748743,0.00026027,2]
[357478250,1744079475607,-601.69,0.00026027,2]
[357478251,1744079475616,-500.0,0.00026027,2]
[357478252,1744079475626,-500.0,0.00026027,2]
[357478253,1744079475635,-1208.47,0.00026027,2]
[357478254,1744079475651,-500.0,0.00026027,2]
[357478255,1744079475660,-1268.13,0.00026027,2]
[357478256,1744079475670,-1140.19,0.00026027,2]
[357478257,1744079475679,-727.74,0.00026027,2]
[357478258,1744079475690,-554.86,0.00026027,2]
[357478259,1744079475700,-831.74,0.00026027,2]
[357478260,1744079475709,-500.0,0.00026027,2]
[357478261,1744079475721,-151.0,0.00026027,7]
[357478262,1744079475730,-500.0,0.00026027,2]
[357478263,1744079475740,-1393.1,0.00026027,2]
[357478264,1744079475751,-951.68,0.00026027,2]
[357478265,1744079475760,-151.0,0.00026027,7]
[357478266,1744079475770,-253.205421,0.00026027,7]
[357478267,1744079475779,-151.0,0.00026027,7]
[357478268,1744079475789,-253.205421,0.00026027,7]
[357478269,1744079475799,-1353.37,0.00026027,2]
[357478270,1744079475809,-500.0,0.00026027,2]
[357478271,1744079475819,-1182.11,0.00026027,2]
[357478272,1744079475828,-500.0,0.00026027,2]
[357478273,1744079475838,-526.21,0.00026027,2]
[357478274,1744079475848,-500.0,0.00026027,2]
[357478275,1744079475857,-2114.72,0.00026027,2]
[357478276,1744079475867,-572.22,0.00026027,2]
[357478277,1744079475876,-151.0,0.00026027,7]
[357478278,1744079475886,-8763.46,0.00026027,2]
[357478279,1744079475896,-1114.99,0.00026027,2]
[357478280,1744079475905,-500.0,0.00026027,2]
[357478281,1744079475915,-500.0,0.00026027,2]
[357478282,1744079475925,-500.0,0.00026027,2]
[357478283,1744079475935,-836.02,0.00026027,2]
[357478284,1744079475944,-290.919118,0.00026027,7]
[357478285,1744079475954,-1780.71,0.00026027,2]
[357478286,1744079475964,-500.0,0.00026027,2]
[357478287,1744079475974,-290.919118,0.00026027,7]
[357478288,1744079475983,-151.0,0.00026027,2]
[357478289,1744079475993,-595.24,0.00026027,2]
[357478290,1744079476002,-524.96,0.00026027,2]
[357478291,1744079476012,-644.87762528,0.00026027,2]
[357478292,1744079476022,-771.06,0.00026027,2]
[357478293,1744079476032,-2262.69,0.00026027,2]
[357478294,1744079476041,-200.035634,0.00026027,7]
[357478295,1744079476051,-571.90904836,0.00026027,2]
[357478296,1744079476061,-170.115565,0.00026027,7]
[357478297,1744079476071,-200.035634,0.00026027,7]
[357478298,1744079476080,-2880.26,0.00026027,2]
[357478299,1744079476090,-170.115565,0.00026027,7]
[357478300,1744079476099,-500.0,0.00026027,2]
[357478301,1744079476110,-1134.35,0.00026027,2]
[357478302,1744079476119,-1798.88,0.00026027,2]
[357478303,1744079476128,-589.5,0.00026027,2]
[357478304,1744079476138,-1340.54,0.00026027,2]
[357478305,1744079476147,-500.0,0.00026027,2]
[357478306,1744079476157,-500.0,0.00026027,2]
[357478307,1744079476167,-521.50206092,0.00026027,2]
[357478308,1744079476184,-2337.51,0.00026027,2]
[357478309,1744079476194,-542.01,0.00026027,2]
[357478310,1744079476205,-2076.71,0.00026027,2]
[357478311,1744079476215,-730.76,0.00026027,2]
[357478312,1744079476226,-1162.69,0.00026027,2]
[357478313,1744079476236,-1291.27,0.00026027,2]
[357478314,1744079476246,-546.37,0.00026027,2]
[357478315,1744079476257,-1701.69,0.00026027,2]
[357478316,1744079476266,-1276.21,0.00026027,2]
[357478317,1744079476276,-783.90533442,0.00026027,7]
[357478318,1744079476286,-500.0,0.00026027,2]
[357478319,1744079476295,-561.08,0.00026027,2]
[357478320,1744079476305,-477.61740942,0.00026027,2]
[357478321,1744079476314,-500.0,0.00026027,2]
[357478322,1744079476324,-890.46,0.00026027,2]
[357478323,1744079476333,-5381.3,0.00026027,2]
[357478324,1744079476343,-1513.16,0.00026027,2]
[357478325,1744079476352,-419.46366559,0.00026027,7]
[357478326,1744079476362,-151.0,0.00026027,7]
[357478327,1744079476372,-720.44,0.00026027,2]
[357478328,1744079476381,-500.0,0.00026027,2]
[357478329,1744079476391,-500.0,0.00026027,2]
[357478330,1744079476400,-1073.11,0.00026027,2]
[357478331,1744079476410,-500.0,0.00026027,2]
[357478332,1744079476422,-160.0,0.00026027,7]
[357478333,1744079476431,-568.94,0.00026027,2]
[357478334,1744079476441,-523.03,0.00026027,2]
[357478335,1744079476452,-795.94,0.00026027,2]
[357478336,1744079476462,-151.0,0.00026027,7]
[357478337,1744079476472,-211.999404,0.00026027,7]
[357478338,1744079476482,-590.76,0.00026027,2]
[357478339,1744079476492,-1531.45,0.00026027,2]
[357478340,1744079476502,-1878.37,0.00026027,2]
[357478341,1744079476512,-1180.34,0.00026027,2]
[357478342,1744079476522,-2000.22,0.00026027,2]
[357478343,1744079476532,-1118.42,0.00026027,2]
[357478344,1744079476542,-500.0,0.00026027,2]
[357478345,1744079476552,-500.0,0.00026027,2]
[357478346,1744079476561,-1868.62,0.00026027,2]
[357478347,1744079476571,-500.0,0.00026027,2]
[357478348,1744079476580,-500.0,0.00026027,2]
[357478349,1744079476590,-160.0,0.00026027,7]
[357478350,1744079476599,-1602.29,0.00026027,2]
[357478351,1744079476609,-500.0,0.00026027,2]
[357478352,1744079476618,-1915.21,0.00026027,2]
[357478353,1744079476628,-500.0,0.00026027,2]
[357478354,1744079476642,-602.81,0.00026027,2]
[357478355,1744079476652,-500.0,0.00026027,2]
[357478356,1744079476662,-2426.96,0.00026027,2]
[357478357,1744079476672,-405.78504749,0.00026027,2]
[357478358,1744079476683,-500.0,0.00026027,2]
[357478359,1744079476693,-1165.83,0.00026027,2]
[357478360,1744079476703,-2935.5,0.00026027,2]
[357478361,1744079476713,-955.52,0.00026027,2]
[357478362,1744079476727,-1109.48,0.00026027,2]
[357478363,1744079476736,-500.0,0.00026027,2]
[357478364,1744079476746,-500.0,0.00026027,2]
[357478365,1744079476756,-1240.57,0.00026027,2]
[357478366,1744079476766,-500.0,0.00026027,2]
[357478367,1744079476775,-500.0,0.00026027,2]
[357478368,1744079476784,-1640.16,0.00026027,2]
[357478369,1744079476804,-503.7,0.00026027,2]
[357478370,1744079476819,-1130.38,0.00026027,2]
[357478371,1744079476830,-500.0,0.00026301,2]
[357478372,1744079476840,-157.91640295,0.00026301,2]
[357478373,1744079476851,-181.3280427,0.00026301,2]
[357478374,1744079476861,-500.11,0.00026301,2]
[357478375,1744079476872,-500.0,0.00026301,2]
[357478376,1744079476882,-500.0,0.00026301,2]
[357478377,1744079476892,-500.0,0.00026301,2]
[357478378,1744079476902,-500.0,0.00026301,2]
[357478379,1744079476913,-500.0,0.00026301,2]
[357478380,1744079476923,-617.55,0.00026301,2]
[357478381,1744079476932,-655.89,0.00026301,2]
[357478382,1744079476944,-500.0,0.00026301,2]
[357478383,1744079476954,-694.6,0.00026301,2]
[357478384,1744079476964,-439.62484298,0.00026301,2]
[357478385,1744079476975,-777.63,0.00026301,2]
[357478386,1744079476985,-536.91,0.00026301,2]
[357478387,1744079476996,-527.31,0.00026301,2]
[357478388,1744079477006,-647.06,0.00026301,2]
[357478389,1744079477017,-500.0,0.00026301,2]
[357478390,1744079477027,-500.0,0.00026301,2]
[357478391,1744079477037,-1500.08,0.00026301,2]
[357478392,1744079477048,-601.69,0.00026301,2]
[357478393,1744079477058,-500.0,0.00026301,2]
[357478394,1744079477069,-500.0,0.00026301,2]
[357478395,1744079477080,-1208.47,0.00026301,2]
[357478396,1744079477091,-500.0,0.00026301,2]